[Event "Titled Tuesday Blitz August 02 Early 2022"]
[White "Taboas Rodriguez, Daniel"]
[Black "Aditya Mittal"]
[WhiteFideId "2208466"]
[BlackFideId "35042025"]
[WhiteElo "2429"]
[BlackElo "2303"]
[Result "1-0"]
[Round "02"]
[TimeControl "180+1"]
[Date "2022.08.02"]
[WhiteClock "0:00:10"]
[BlackClock "0:00:02"]

1. d4 {[%clk 0:02:59]}  Nf6 {[%clk 0:02:59]} 2. Nf3 {[%clk 0:03:00]}  d5 {[%clk 0:02:59]} 3. c4 {[%clk 0:02:34]}  e6 {[%clk 0:02:59]} 4. Nc3 {[%clk 0:02:33]}  c6 {[%clk 0:02:54]} 5. Bg5 {[%clk 0:02:33]}  h6 {[%clk 0:02:52]} 6. Bxf6 {[%clk 0:02:32]}  Qxf6 {[%clk 0:02:53]} 7. e3 {[%clk 0:02:32]}  g6 {[%clk 0:02:50]} 8. Rc1 {[%clk 0:02:32]}  Bg7 {[%clk 0:02:50]} 9. Bd3 {[%clk 0:02:31]}  O-O {[%clk 0:02:51]} 10. O-O {[%clk 0:02:31]}  Qd8 {[%clk 0:02:50]} 11. Qe2 {[%clk 0:02:30]}  Nd7 {[%clk 0:02:48]} 12. Rfd1 {[%clk 0:02:30]}  f5 {[%clk 0:02:47]} 13. b4 {[%clk 0:02:27]}  Qe7 {[%clk 0:02:40]} 14. b5 {[%clk 0:02:21]}  dxc4 {[%clk 0:02:21]} 15. Bxc4 {[%clk 0:02:19]}  c5 {[%clk 0:02:22]} 16. d5 {[%clk 0:02:15]}  Nb6 {[%clk 0:02:22]} 17. d6 {[%clk 0:02:12]}  Qf6 {[%clk 0:02:13]} 18. e4 {[%clk 0:02:04]}  Bd7 {[%clk 0:01:57]} 19. a4 {[%clk 0:01:53]}  g5 {[%clk 0:01:51]} 20. e5 {[%clk 0:01:50]}  Qf7 {[%clk 0:01:47]} 21. Nd2 {[%clk 0:01:22]}  Rae8 {[%clk 0:01:36]} 22. a5 {[%clk 0:01:21]}  Nd5 {[%clk 0:01:36]} 23. Ba2 {[%clk 0:00:55]}  Nf4 {[%clk 0:00:52]} 24. Qe3 {[%clk 0:00:50]}  Rc8 {[%clk 0:00:42]} 25. Nc4 {[%clk 0:00:47]}  Ng6 {[%clk 0:00:40]} 26. Re1 {[%clk 0:00:46]}  f4 {[%clk 0:00:40]} 27. Qe4 {[%clk 0:00:45]}  Rb8 {[%clk 0:00:37]} 28. Bb1 {[%clk 0:00:43]}  Kh7 {[%clk 0:00:28]} 29. h4 {[%clk 0:00:39]}  gxh4 {[%clk 0:00:25]} 30. Rcd1 {[%clk 0:00:40]}  h5 {[%clk 0:00:24]} 31. Rd3 {[%clk 0:00:39]}  Qf5 {[%clk 0:00:24]} 32. Rh3 {[%clk 0:00:28]}  Qxe4 {[%clk 0:00:21]} 33. Bxe4 {[%clk 0:00:29]}  Kh6 {[%clk 0:00:18]} 34. Bxg6 {[%clk 0:00:29]}  Kxg6 {[%clk 0:00:19]} 35. Rxh4 {[%clk 0:00:29]}  Rf5 {[%clk 0:00:17]} 36. Re4 {[%clk 0:00:25]}  Kg5 {[%clk 0:00:17]} 37. g3 {[%clk 0:00:25]}  fxg3 {[%clk 0:00:17]} 38. fxg3 {[%clk 0:00:26]}  Rbf8 {[%clk 0:00:17]} 39. b6 {[%clk 0:00:22]}  a6 {[%clk 0:00:17]} 40. Re2 {[%clk 0:00:15]}  Rf1+ {[%clk 0:00:17]} 41. Kg2 {[%clk 0:00:15]}  Bc6+ {[%clk 0:00:16]} 42. Ne4+ {[%clk 0:00:14]}  Kg6 {[%clk 0:00:17]} 43. Rf4 {[%clk 0:00:12]}  R1xf4 {[%clk 0:00:16]} 44. gxf4 {[%clk 0:00:13]}  Rxf4 {[%clk 0:00:16]} 45. Nd2 {[%clk 0:00:14]}  Bxe5 {[%clk 0:00:16]} 46. Kh3 {[%clk 0:00:14]}  Bxe4 {[%clk 0:00:12]} 47. Rxe4 {[%clk 0:00:15]}  Rxe4 {[%clk 0:00:08]} 48. Nxe4 {[%clk 0:00:16]}  c4 {[%clk 0:00:09]} 49. d7 {[%clk 0:00:15]}  Kf5 {[%clk 0:00:06]} 50. d8=Q {[%clk 0:00:13]}  Kxe4 {[%clk 0:00:06]} 51. Qc8 {[%clk 0:00:13]}  c3 {[%clk 0:00:06]} 52. Qxb7+ {[%clk 0:00:14]}  Kd3 {[%clk 0:00:07]} 53. Qc6 {[%clk 0:00:14]}  c2 {[%clk 0:00:07]} 54. b7 {[%clk 0:00:12]}  h4 {[%clk 0:00:04]} 55. Qf3+ {[%clk 0:00:10]}  Kd2 {[%clk 0:00:03]} 56. Qf2+ {[%clk 0:00:09]}  Kd3 {[%clk 0:00:03]} 57. Qe1 {[%clk 0:00:09]}  Bf4 {[%clk 0:00:03]} 58. Qf1+ {[%clk 0:00:07]}  Ke3 {[%clk 0:00:01]} 59. Qxf4+ {[%clk 0:00:08]}  Kxf4 {[%clk 0:00:02]} 60. b8=Q+ {[%clk 0:00:09]}  Ke3 {[%clk 0:00:02]} 61. Qb2 {[%clk 0:00:09]}  Kd2 {[%clk 0:00:02]} 62. Qd4+ {[%clk 0:00:10]}  Kc1 {[%clk 0:00:03]} 63. Kxh4 {[%clk 0:00:09]}  Kb1 {[%clk 0:00:03]} 64. Qb4+ {[%clk 0:00:09]}  Ka2 {[%clk 0:00:04]} 65. Qc3 {[%clk 0:00:09]}  Kb1 {[%clk 0:00:04]} 66. Qb3+ {[%clk 0:00:10]}  Kc1 {[%clk 0:00:04]} 67. Kg3 {[%clk 0:00:10]}  e5 {[%clk 0:00:05]} 68. Kf2 {[%clk 0:00:10]}  Kd2 {[%clk 0:00:05]} 69. Qb4+ {[%clk 0:00:10]}  Kd1 {[%clk 0:00:04]} 70. Qd6+ {[%clk 0:00:09]}  Kc1 {[%clk 0:00:04]} 71. Qxa6 {[%clk 0:00:10]}  e4 {[%clk 0:00:02]} 72. Ke2 {[%clk 0:00:09]}  e3 {[%clk 0:00:02]} 73. Qd3 {[%clk 0:00:09]}  Kb1 {[%clk 0:00:02]} 74. Qxc2+ {[%clk 0:00:09]}  Kxc2 {[%clk 0:00:02]} 75. a6 {[%clk 0:00:10]} 1-0


[Site "https://www.chess.com"]

[Event "Titled Tuesday Blitz August 02 Early 2022"]
[White "Wu, Rochelle"]
[Black "Nakamura, Hikaru"]
[WhiteFideId "30908132"]
[BlackFideId "2016192"]
[WhiteElo "2168"]
[BlackElo "2850"]
[Result "0-1"]
[Round "02"]
[TimeControl "180+1"]
[Date "2022.08.02"]
[WhiteClock "0:00:20"]
[BlackClock "0:01:58"]

1. d4 {[%clk 0:02:59]}  g6 {[%clk 0:02:59]} 2. c4 {[%clk 0:03:00]}  Bg7 {[%clk 0:02:58]} 3. Nc3 {[%clk 0:03:00]}  c5 {[%clk 0:02:59]} 4. Nf3 {[%clk 0:03:00]}  Nc6 {[%clk 0:02:58]} 5. d5 {[%clk 0:02:59]}  Na5 {[%clk 0:02:57]} 6. e4 {[%clk 0:02:56]}  d6 {[%clk 0:02:56]} 7. Bd2 {[%clk 0:02:53]}  Nf6 {[%clk 0:02:53]} 8. Bd3 {[%clk 0:02:52]}  Bg4 {[%clk 0:02:53]} 9. h3 {[%clk 0:02:49]}  Bxf3 {[%clk 0:02:53]} 10. Qxf3 {[%clk 0:02:50]}  Nd7 {[%clk 0:02:54]} 11. Qe2 {[%clk 0:02:44]}  O-O {[%clk 0:02:53]} 12. O-O {[%clk 0:02:44]}  e6 {[%clk 0:02:54]} 13. Bc2 {[%clk 0:02:36]}  exd5 {[%clk 0:02:52]} 14. exd5 {[%clk 0:02:37]}  Re8 {[%clk 0:02:52]} 15. Be3 {[%clk 0:02:23]}  Ne5 {[%clk 0:02:52]} 16. Bd3 {[%clk 0:02:18]}  Qh4 {[%clk 0:02:46]} 17. Kh2 {[%clk 0:02:03]}  Nxd3 {[%clk 0:02:43]} 18. Qxd3 {[%clk 0:02:02]}  Qxc4 {[%clk 0:02:43]} 19. Qd2 {[%clk 0:01:39]}  Qb4 {[%clk 0:02:25]} 20. Rab1 {[%clk 0:00:46]}  Nc4 {[%clk 0:02:24]} 21. Qc1 {[%clk 0:00:47]}  Nxe3 {[%clk 0:02:17]} 22. fxe3 {[%clk 0:00:47]}  Qh4 {[%clk 0:02:14]} 23. Rf3 {[%clk 0:00:44]}  a6 {[%clk 0:02:13]} 24. Qc2 {[%clk 0:00:36]}  b5 {[%clk 0:02:10]} 25. Rbf1 {[%clk 0:00:33]}  Ra7 {[%clk 0:02:08]} 26. Ne2 {[%clk 0:00:30]}  Qe4 {[%clk 0:02:02]} 27. Qd2 {[%clk 0:00:26]}  Qe5+ {[%clk 0:01:59]} 28. Kh1 {[%clk 0:00:20]}  Qxb2 {[%clk 0:01:58]} 0-1


[Site "https://www.chess.com"]

[Event "Titled Tuesday Blitz August 02 Early 2022"]
[White "Xu, Yi"]
[Black "Jarmula, Lukasz"]
[WhiteFideId "8605564"]
[BlackFideId "1160664"]
[WhiteElo "2471"]
[BlackElo "2246"]
[Result "1-0"]
[Round "02"]
[TimeControl "180+1"]
[Date "2022.08.02"]
[WhiteClock "0:01:04"]
[BlackClock "0:01:17"]

1. e4 {[%clk 0:02:58]}  c5 {[%clk 0:02:59]} 2. Nf3 {[%clk 0:02:58]}  e6 {[%clk 0:03:00]} 3. d4 {[%clk 0:02:58]}  cxd4 {[%clk 0:03:00]} 4. Nxd4 {[%clk 0:02:59]}  Nc6 {[%clk 0:03:00]} 5. Nc3 {[%clk 0:02:59]}  Nf6 {[%clk 0:03:01]} 6. Nxc6 {[%clk 0:02:57]}  bxc6 {[%clk 0:03:00]} 7. e5 {[%clk 0:02:57]}  Nd5 {[%clk 0:03:01]} 8. Ne4 {[%clk 0:02:58]}  Qc7 {[%clk 0:03:01]} 9. f4 {[%clk 0:02:57]}  Qb6 {[%clk 0:03:00]} 10. c4 {[%clk 0:02:56]}  Bb4+ {[%clk 0:03:00]} 11. Ke2 {[%clk 0:02:56]}  f5 {[%clk 0:03:00]} 12. Nf2 {[%clk 0:02:49]}  Ne7 {[%clk 0:02:59]} 13. Be3 {[%clk 0:02:41]}  Bc5 {[%clk 0:02:59]} 14. Bxc5 {[%clk 0:02:40]}  Qxc5 {[%clk 0:02:59]} 15. Kf3 {[%clk 0:02:34]}  Ba6 {[%clk 0:02:58]} 16. b3 {[%clk 0:02:25]}  Rd8 {[%clk 0:02:48]} 17. Qd6 {[%clk 0:02:23]}  Qb6 {[%clk 0:02:42]} 18. Nd3 {[%clk 0:02:22]}  Nc8 {[%clk 0:02:34]} 19. Qc5 {[%clk 0:02:22]}  Bb7 {[%clk 0:02:28]} 20. Qxb6 {[%clk 0:02:07]}  axb6 {[%clk 0:02:28]} 21. c5 {[%clk 0:02:07]}  bxc5 {[%clk 0:02:22]} 22. Nxc5 {[%clk 0:02:07]}  Ba8 {[%clk 0:02:23]} 23. Bc4 {[%clk 0:02:00]}  Nb6 {[%clk 0:02:20]} 24. Rhd1 {[%clk 0:02:00]}  Ke7 {[%clk 0:02:18]} 25. Rd6 {[%clk 0:02:00]}  Nd5 {[%clk 0:02:18]} 26. Bxd5 {[%clk 0:01:57]}  cxd5 {[%clk 0:02:18]} 27. Ke3 {[%clk 0:01:56]}  Rhg8 {[%clk 0:02:15]} 28. h4 {[%clk 0:01:54]}  h6 {[%clk 0:02:15]} 29. g3 {[%clk 0:01:44]}  Bc6 {[%clk 0:02:14]} 30. b4 {[%clk 0:01:41]}  Rb8 {[%clk 0:02:10]} 31. a3 {[%clk 0:01:41]}  Rgc8 {[%clk 0:01:55]} 32. Kd4 {[%clk 0:01:37]}  Ra8 {[%clk 0:01:53]} 33. a4 {[%clk 0:01:23]}  Rcb8 {[%clk 0:01:53]} 34. Kc3 {[%clk 0:01:23]}  Rc8 {[%clk 0:01:51]} 35. a5 {[%clk 0:01:19]}  Bb5 {[%clk 0:01:47]} 36. Rb6 {[%clk 0:01:19]}  Bc6 {[%clk 0:01:44]} 37. Kd4 {[%clk 0:01:15]}  Rcb8 {[%clk 0:01:42]} 38. Rxb8 {[%clk 0:01:09]}  Rxb8 {[%clk 0:01:43]} 39. Kc3 {[%clk 0:01:08]}  d4+ {[%clk 0:01:38]} 40. Kb3 {[%clk 0:01:09]}  Bd5+ {[%clk 0:01:34]} 41. Ka4 {[%clk 0:01:07]}  Bc6+ {[%clk 0:01:34]} 42. Kb3 {[%clk 0:01:07]}  Bd5+ {[%clk 0:01:34]} 43. Ka3 {[%clk 0:01:07]}  d6 {[%clk 0:01:15]} 44. exd6+ {[%clk 0:01:04]}  Kxd6 {[%clk 0:01:16]} 45. Rd1 {[%clk 0:01:03]}  e5 {[%clk 0:01:17]} 46. fxe5+ {[%clk 0:01:04]} 1-0


[Site "https://www.chess.com"]

[Event "Titled Tuesday Blitz August 02 Early 2022"]
[White "Aggelis, Nikolaos"]
[Black "Zhigalko, Sergei"]
[WhiteFideId "4213220"]
[BlackFideId "13502956"]
[WhiteElo "2154"]
[BlackElo "2662"]
[Result "0-1"]
[Round "03"]
[TimeControl "180+1"]
[Date "2022.08.02"]
[WhiteClock "0:00:01"]
[BlackClock "0:00:05"]

1. d4 {[%clk 0:02:50]}  Nf6 {[%clk 0:02:59]} 2. g3 {[%clk 0:02:49]}  d5 {[%clk 0:02:56]} 3. Nf3 {[%clk 0:02:48]}  Bf5 {[%clk 0:02:55]} 4. c4 {[%clk 0:02:46]}  e6 {[%clk 0:02:53]} 5. Qb3 {[%clk 0:02:45]}  Nc6 {[%clk 0:02:53]} 6. cxd5 {[%clk 0:02:38]}  Nb4 {[%clk 0:02:46]} 7. Na3 {[%clk 0:02:36]}  Qxd5 {[%clk 0:02:39]} 8. Qxd5 {[%clk 0:02:27]}  exd5 {[%clk 0:02:36]} 9. Bg2 {[%clk 0:02:25]}  c6 {[%clk 0:02:32]} 10. O-O {[%clk 0:02:23]}  Bd6 {[%clk 0:02:31]} 11. Bd2 {[%clk 0:02:19]}  O-O {[%clk 0:02:27]} 12. Ne5 {[%clk 0:02:18]}  Rfe8 {[%clk 0:02:22]} 13. f4 {[%clk 0:02:11]}  Ne4 {[%clk 0:02:20]} 14. Bxe4 {[%clk 0:02:10]}  Bxe4 {[%clk 0:02:18]} 15. Kf2 {[%clk 0:01:59]}  f6 {[%clk 0:02:15]} 16. Nf3 {[%clk 0:01:59]}  Re7 {[%clk 0:02:05]} 17. Rfc1 {[%clk 0:01:44]}  Rae8 {[%clk 0:01:58]} 18. Ne1 {[%clk 0:01:44]}  h5 {[%clk 0:01:50]} 19. e3 {[%clk 0:01:44]}  g5 {[%clk 0:01:46]} 20. Nb1 {[%clk 0:01:42]}  Kh7 {[%clk 0:01:00]} 21. Nc3 {[%clk 0:01:41]}  Nd3+ {[%clk 0:00:55]} 22. Nxd3 {[%clk 0:01:40]}  Bxd3 {[%clk 0:00:56]} 23. h4 {[%clk 0:01:33]}  Kg6 {[%clk 0:00:43]} 24. hxg5 {[%clk 0:01:30]}  fxg5 {[%clk 0:00:43]} 25. Rh1 {[%clk 0:01:30]}  Bf5 {[%clk 0:00:38]} 26. Rag1 {[%clk 0:01:28]}  Bg4 {[%clk 0:00:36]} 27. Rg2 {[%clk 0:01:23]}  Rf7 {[%clk 0:00:29]} 28. Ne2 {[%clk 0:01:20]}  Re4 {[%clk 0:00:19]} 29. Ng1 {[%clk 0:01:15]}  c5 {[%clk 0:00:14]} 30. dxc5 {[%clk 0:01:07]}  Bxc5 {[%clk 0:00:14]} 31. Nf3 {[%clk 0:01:07]}  gxf4 {[%clk 0:00:13]} 32. gxf4 {[%clk 0:01:06]}  Rfxf4 {[%clk 0:00:13]} 33. Rg3 {[%clk 0:00:51]}  Rf8 {[%clk 0:00:13]} 34. Kg2 {[%clk 0:00:45]}  Bd6 {[%clk 0:00:12]} 35. Nh4+ {[%clk 0:00:38]}  Kh7 {[%clk 0:00:12]} 36. Nf3 {[%clk 0:00:31]}  Rg8 {[%clk 0:00:05]} 37. Rxh5+ {[%clk 0:00:19]}  Bxh5 {[%clk 0:00:05]} 38. Ng5+ {[%clk 0:00:19]}  Rxg5 {[%clk 0:00:04]} 39. Rxg5 {[%clk 0:00:19]}  Re5 {[%clk 0:00:04]} 40. Rg3 {[%clk 0:00:15]}  Rf5 {[%clk 0:00:05]} 41. Rh3 {[%clk 0:00:14]}  Kg6 {[%clk 0:00:05]} 42. Bc3 {[%clk 0:00:13]}  Be5 {[%clk 0:00:04]} 43. Bd4 {[%clk 0:00:10]}  Bxd4 {[%clk 0:00:05]} 44. exd4 {[%clk 0:00:10]}  Rf4 {[%clk 0:00:05]} 45. Rc3 {[%clk 0:00:10]}  Rxd4 {[%clk 0:00:04]} 46. Rc7 {[%clk 0:00:11]}  Rb4 {[%clk 0:00:04]} 47. Kg3 {[%clk 0:00:12]}  Rxb2 {[%clk 0:00:04]} 48. Kf4 {[%clk 0:00:13]}  Kf6 {[%clk 0:00:03]} 49. Rh7 {[%clk 0:00:12]}  Rb4+ {[%clk 0:00:03]} 50. Ke3 {[%clk 0:00:12]}  Bg6 {[%clk 0:00:04]} 51. Rh8 {[%clk 0:00:12]}  d4+ {[%clk 0:00:04]} 52. Kd2 {[%clk 0:00:12]}  Rb2+ {[%clk 0:00:05]} 53. Kc1 {[%clk 0:00:12]}  Rxa2 {[%clk 0:00:05]} 54. Rd8 {[%clk 0:00:12]}  Ke5 {[%clk 0:00:05]} 55. Rd7 {[%clk 0:00:13]}  Be4 {[%clk 0:00:04]} 56. Re7+ {[%clk 0:00:12]}  Kf4 {[%clk 0:00:05]} 57. Rd7 {[%clk 0:00:12]}  Ke3 {[%clk 0:00:05]} 58. Rh7 {[%clk 0:00:10]}  d3 {[%clk 0:00:05]} 59. Rh3+ {[%clk 0:00:09]}  Kd4 {[%clk 0:00:05]} 60. Rh8 {[%clk 0:00:05]}  Rc2+ {[%clk 0:00:05]} 61. Kb1 {[%clk 0:00:05]}  d2 {[%clk 0:00:06]} 62. Rd8+ {[%clk 0:00:03]}  Ke3 {[%clk 0:00:06]} 63. Rd7 {[%clk 0:00:01]}  Rc7+ {[%clk 0:00:05]} 0-1


[Site "https://www.chess.com"]

[Event "Titled Tuesday Blitz August 02 Early 2022"]
[White "Bekturov, Tamerlan"]
[Black "Ohanyan, Emin"]
[WhiteFideId "13710184"]
[BlackFideId "13312022"]
[WhiteElo "2128"]
[BlackElo "1927"]
[Result "0-1"]
[Round "03"]
[TimeControl "180+1"]
[Date "2022.08.02"]
[WhiteClock "0:01:14"]
[BlackClock "0:01:03"]

1. d4 {[%clk 0:02:47]}  Nf6 {[%clk 0:02:59]} 2. c4 {[%clk 0:02:47]}  e6 {[%clk 0:03:00]} 3. Nc3 {[%clk 0:02:48]}  Bb4 {[%clk 0:03:00]} 4. Nf3 {[%clk 0:02:47]}  d5 {[%clk 0:02:59]} 5. cxd5 {[%clk 0:02:46]}  exd5 {[%clk 0:03:00]} 6. Bg5 {[%clk 0:02:46]}  h6 {[%clk 0:03:00]} 7. Bh4 {[%clk 0:02:46]}  Bf5 {[%clk 0:03:01]} 8. e3 {[%clk 0:02:46]}  O-O {[%clk 0:02:52]} 9. Bd3 {[%clk 0:02:45]}  Bxd3 {[%clk 0:02:50]} 10. Qxd3 {[%clk 0:02:46]}  Nbd7 {[%clk 0:02:47]} 11. O-O {[%clk 0:02:46]}  c6 {[%clk 0:02:46]} 12. a3 {[%clk 0:02:34]}  Be7 {[%clk 0:02:43]} 13. b4 {[%clk 0:02:27]}  a6 {[%clk 0:02:42]} 14. Na4 {[%clk 0:02:20]}  Ne4 {[%clk 0:02:42]} 15. Bxe7 {[%clk 0:02:18]}  Qxe7 {[%clk 0:02:43]} 16. Nc5 {[%clk 0:02:18]}  Nd6 {[%clk 0:02:37]} 17. Nxd7 {[%clk 0:02:13]}  Qxd7 {[%clk 0:02:38]} 18. Ne5 {[%clk 0:02:13]}  Qe6 {[%clk 0:02:13]} 19. a4 {[%clk 0:02:08]}  Nc4 {[%clk 0:02:00]} 20. f4 {[%clk 0:01:58]}  f6 {[%clk 0:01:46]} 21. Ng6 {[%clk 0:01:43]}  Rfe8 {[%clk 0:01:38]} 22. Rf3 {[%clk 0:01:20]}  Qe4 {[%clk 0:01:29]} 23. Qxe4 {[%clk 0:01:20]}  Rxe4 {[%clk 0:01:25]} 24. Kf2 {[%clk 0:01:19]}  Rae8 {[%clk 0:01:22]} 25. Re1 {[%clk 0:01:19]}  Nb2 {[%clk 0:01:23]} 26. Ra1 {[%clk 0:01:15]}  Nd3+ {[%clk 0:01:20]} 27. Ke2 {[%clk 0:01:13]}  Nxb4 {[%clk 0:01:21]} 28. Rb1 {[%clk 0:01:14]}  Rxd4 {[%clk 0:01:03]} 0-1


[Site "https://www.chess.com"]

[Event "Titled Tuesday Blitz August 02 Early 2022"]
[White "Bortnyk, Olexandr"]
[Black "Samunenkov, Ihor"]
[WhiteFideId "14120828"]
[BlackFideId "14187086"]
[WhiteElo "2723"]
[BlackElo "2409"]
[Result "1-0"]
[Round "03"]
[TimeControl "180+1"]
[Date "2022.08.02"]
[WhiteClock "0:00:09"]
[BlackClock "0:00:02"]

1. d4 {[%clk 0:03:00]}  Nf6 {[%clk 0:02:59]} 2. Nc3 {[%clk 0:03:00]}  d5 {[%clk 0:02:59]} 3. Bf4 {[%clk 0:03:00]}  e6 {[%clk 0:02:57]} 4. Nb5 {[%clk 0:03:00]}  Na6 {[%clk 0:02:57]} 5. e3 {[%clk 0:02:59]}  Be7 {[%clk 0:02:58]} 6. Nf3 {[%clk 0:02:59]}  O-O {[%clk 0:02:58]} 7. Ne5 {[%clk 0:02:59]}  c6 {[%clk 0:02:42]} 8. Nc3 {[%clk 0:02:59]}  Qa5 {[%clk 0:02:42]} 9. Bd3 {[%clk 0:02:54]}  c5 {[%clk 0:02:31]} 10. O-O {[%clk 0:02:53]}  Nb4 {[%clk 0:02:27]} 11. Be2 {[%clk 0:02:41]}  Nc6 {[%clk 0:02:17]} 12. a3 {[%clk 0:02:37]}  cxd4 {[%clk 0:02:02]} 13. exd4 {[%clk 0:02:38]}  Bd7 {[%clk 0:02:01]} 14. b4 {[%clk 0:02:35]}  Qd8 {[%clk 0:01:51]} 15. Re1 {[%clk 0:02:24]}  Rc8 {[%clk 0:01:50]} 16. Nxc6 {[%clk 0:02:24]}  Rxc6 {[%clk 0:01:35]} 17. Na4 {[%clk 0:02:21]}  b6 {[%clk 0:01:26]} 18. Ba6 {[%clk 0:02:09]}  Bd6 {[%clk 0:01:18]} 19. b5 {[%clk 0:02:04]}  Bxf4 {[%clk 0:01:13]} 20. bxc6 {[%clk 0:02:05]}  Bxc6 {[%clk 0:01:14]} 21. Nc3 {[%clk 0:02:06]}  Qb8 {[%clk 0:01:02]} 22. g3 {[%clk 0:02:05]}  Bd6 {[%clk 0:01:03]} 23. Bd3 {[%clk 0:02:04]}  Rc8 {[%clk 0:01:02]} 24. Ne2 {[%clk 0:02:01]}  Ba4 {[%clk 0:01:01]} 25. Qd2 {[%clk 0:02:00]}  Qc7 {[%clk 0:00:54]} 26. Rec1 {[%clk 0:01:59]}  b5 {[%clk 0:00:51]} 27. Qe3 {[%clk 0:01:52]}  a6 {[%clk 0:00:50]} 28. Kg2 {[%clk 0:01:43]}  Qe7 {[%clk 0:00:50]} 29. Nf4 {[%clk 0:01:37]}  g6 {[%clk 0:00:44]} 30. Re1 {[%clk 0:01:30]}  Kg7 {[%clk 0:00:40]} 31. h4 {[%clk 0:01:29]}  Bxf4 {[%clk 0:00:16]} 32. Qxf4 {[%clk 0:01:29]}  h5 {[%clk 0:00:17]} 33. Re2 {[%clk 0:01:14]}  Rc3 {[%clk 0:00:16]} 34. Rae1 {[%clk 0:01:09]}  Rxa3 {[%clk 0:00:13]} 35. Qg5 {[%clk 0:00:57]}  Ng8 {[%clk 0:00:09]} 36. Qe5+ {[%clk 0:00:57]}  Nf6 {[%clk 0:00:07]} 37. f4 {[%clk 0:00:41]}  Kg8 {[%clk 0:00:06]} 38. f5 {[%clk 0:00:40]}  gxf5 {[%clk 0:00:04]} 39. Bxf5 {[%clk 0:00:41]}  Rc3 {[%clk 0:00:03]} 40. Qf4 {[%clk 0:00:38]}  Qc7 {[%clk 0:00:01]} 41. Qg5+ {[%clk 0:00:38]}  Kf8 {[%clk 0:00:02]} 42. Bxe6 {[%clk 0:00:31]}  Ne4 {[%clk 0:00:02]} 43. Rxe4 {[%clk 0:00:21]}  dxe4 {[%clk 0:00:03]} 44. Rxe4 {[%clk 0:00:22]}  Rxc2+ {[%clk 0:00:02]} 45. Kh3 {[%clk 0:00:22]}  fxe6 {[%clk 0:00:02]} 46. Rf4+ {[%clk 0:00:22]}  Ke8 {[%clk 0:00:02]} 47. Qg8+ {[%clk 0:00:23]}  Kd7 {[%clk 0:00:03]} 48. Rf7+ {[%clk 0:00:24]}  Kc6 {[%clk 0:00:03]} 49. Rxc7+ {[%clk 0:00:19]}  Kxc7 {[%clk 0:00:04]} 50. Qxe6 {[%clk 0:00:16]}  b4 {[%clk 0:00:03]} 51. Qe5+ {[%clk 0:00:14]}  Kd8 {[%clk 0:00:01]} 52. Qb8+ {[%clk 0:00:10]}  Kd7 {[%clk 0:00:01]} 53. Qb7+ {[%clk 0:00:10]}  Kd8 {[%clk 0:00:02]} 54. Qb8+ {[%clk 0:00:11]}  Kd7 {[%clk 0:00:02]} 55. Qxb4 {[%clk 0:00:11]}  Bc6 {[%clk 0:00:01]} 56. g4 {[%clk 0:00:10]}  Bg2+ {[%clk 0:00:01]} 57. Kg3 {[%clk 0:00:10]}  hxg4 {[%clk 0:00:02]} 58. Qa4+ {[%clk 0:00:09]} 1-0


[Site "https://www.chess.com"]

[Event "Titled Tuesday Blitz August 02 Early 2022"]
[White "Bryakin, Mikhail"]
[Black "Mathieu, Phileas"]
[WhiteFideId "4165314"]
[BlackFideId "36048410"]
[WhiteElo "2422"]
[BlackElo "2138"]
[Result "1-0"]
[Round "03"]
[TimeControl "180+1"]
[Date "2022.08.02"]
[WhiteClock "0:00:13"]
[BlackClock "0:00:02"]

1. e4 {[%clk 0:03:00]}  c5 {[%clk 0:02:59]} 2. d4 {[%clk 0:03:00]}  cxd4 {[%clk 0:02:58]} 3. Qxd4 {[%clk 0:03:01]}  Nc6 {[%clk 0:02:57]} 4. Qd3 {[%clk 0:03:02]}  Nf6 {[%clk 0:02:50]} 5. Nc3 {[%clk 0:03:02]}  d6 {[%clk 0:02:47]} 6. Nf3 {[%clk 0:03:01]}  g6 {[%clk 0:02:46]} 7. Be2 {[%clk 0:03:01]}  Bg7 {[%clk 0:02:46]} 8. O-O {[%clk 0:03:01]}  O-O {[%clk 0:02:46]} 9. Nd5 {[%clk 0:03:02]}  Bg4 {[%clk 0:02:43]} 10. c3 {[%clk 0:03:02]}  Rc8 {[%clk 0:02:38]} 11. Bg5 {[%clk 0:03:01]}  Bxf3 {[%clk 0:02:36]} 12. Qxf3 {[%clk 0:03:00]}  Ne5 {[%clk 0:02:36]} 13. Qe3 {[%clk 0:02:59]}  Nxd5 {[%clk 0:02:31]} 14. exd5 {[%clk 0:02:59]}  f6 {[%clk 0:02:02]} 15. Bf4 {[%clk 0:02:55]}  b6 {[%clk 0:01:53]} 16. a4 {[%clk 0:02:44]}  Qd7 {[%clk 0:01:51]} 17. Rfd1 {[%clk 0:02:26]}  Nc4 {[%clk 0:01:40]} 18. Bxc4 {[%clk 0:01:53]}  Rxc4 {[%clk 0:01:41]} 19. b3 {[%clk 0:01:53]}  Rc7 {[%clk 0:01:36]} 20. c4 {[%clk 0:01:52]}  g5 {[%clk 0:01:20]} 21. Bg3 {[%clk 0:01:50]}  h6 {[%clk 0:01:20]} 22. Ra2 {[%clk 0:01:48]}  f5 {[%clk 0:01:19]} 23. f4 {[%clk 0:01:46]}  g4 {[%clk 0:01:20]} 24. Re2 {[%clk 0:01:44]}  Bf6 {[%clk 0:01:19]} 25. Be1 {[%clk 0:01:39]}  Rb8 {[%clk 0:00:58]} 26. Bc3 {[%clk 0:01:34]}  Bxc3 {[%clk 0:00:58]} 27. Qxc3 {[%clk 0:01:34]}  b5 {[%clk 0:00:47]} 28. Re6 {[%clk 0:01:25]}  Kh7 {[%clk 0:00:36]} 29. Qg3 {[%clk 0:01:10]}  bxc4 {[%clk 0:00:21]} 30. Qh4 {[%clk 0:01:09]}  Qxe6 {[%clk 0:00:22]} 31. dxe6 {[%clk 0:01:08]}  cxb3 {[%clk 0:00:22]} 32. Qh5 {[%clk 0:01:05]}  Rf8 {[%clk 0:00:18]} 33. Rb1 {[%clk 0:01:02]}  Rb7 {[%clk 0:00:13]} 34. Qh4 {[%clk 0:00:59]}  b2 {[%clk 0:00:12]} 35. Qf2 {[%clk 0:00:52]}  Rc8 {[%clk 0:00:10]} 36. Qd2 {[%clk 0:00:52]}  Rcb8 {[%clk 0:00:05]} 37. Qc2 {[%clk 0:00:45]}  Kg6 {[%clk 0:00:05]} 38. h3 {[%clk 0:00:43]}  h5 {[%clk 0:00:06]} 39. hxg4 {[%clk 0:00:42]}  hxg4 {[%clk 0:00:06]} 40. Kf2 {[%clk 0:00:40]}  Kf6 {[%clk 0:00:07]} 41. a5 {[%clk 0:00:32]}  Kxe6 {[%clk 0:00:06]} 42. a6 {[%clk 0:00:26]}  Rb4 {[%clk 0:00:04]} 43. Qc7 {[%clk 0:00:23]}  R8b5 {[%clk 0:00:01]} 44. Qxa7 {[%clk 0:00:21]}  Rxf4+ {[%clk 0:00:02]} 45. Kg3 {[%clk 0:00:21]}  Re4 {[%clk 0:00:02]} 46. Qa8 {[%clk 0:00:13]} 1-0


[Site "https://www.chess.com"]